[Event "Rapid Tournament (RAP)"]
[Site "Biel, Switzerland"]
[Date "2026.07.12"]
[Round "9.16"]
[White "Ivarsson, Anders"]
[Black "Habibi, Ali"]
[Result "0-1"]
[TimeControl "15 + 5"]
[WhiteTitle "-"]
[BlackTitle "-"]
[WhiteFideId "1768158"]
[BlackFideId "4604393"]
[WhiteElo "1907"]
[BlackElo "2187"]

1. Nf3 {[%clk 00:15:09]} {[%emt 00:08:49]} c5 {[%clk 00:15:09]} 2. c4 {[%clk
00:15:13]} {[%emt 00:00:01]} b6 {[%clk 00:15:13]} {[%emt 00:00:02]} 3. g3
{[%clk 00:15:07]} {[%emt 00:00:11]} Bb7 {[%clk 00:15:17]} 4. Bg2 {[%clk
00:15:11]} e6 {[%clk 00:15:21]} 5. O-O {[%clk 00:15:14]} {[%emt 00:00:02]} Nf6
{[%clk 00:15:25]} 6. Nc3 {[%clk 00:15:07]} {[%emt 00:00:12]} d6 {[%clk
00:15:28]} {[%emt 00:00:02]} 7. d3 {[%clk 00:14:59]} {[%emt 00:00:14]} Be7
{[%clk 00:15:30]} {[%emt 00:00:02]} 8. e4 {[%clk 00:15:00]} {[%emt 00:00:04]}
Nbd7 {[%clk 00:15:33]} {[%emt 00:00:02]} 9. Ne1 {[%clk 00:14:35]} {[%emt
00:00:31]} Qc7 {[%clk 00:15:35]} {[%emt 00:00:03]} 10. f4 {[%clk 00:14:37]}
{[%emt 00:00:03]} a6 {[%clk 00:15:36]} {[%emt 00:00:03]} 11. a3 {[%clk
00:14:08]} {[%emt 00:00:35]} O-O {[%clk 00:15:34]} {[%emt 00:00:06]} 12. Rb1
{[%clk 00:13:50]} {[%emt 00:00:24]} Rab8 {[%clk 00:15:33]} {[%emt 00:00:06]} 13.
Be3 {[%clk 00:13:41]} {[%emt 00:00:14]} g6 {[%clk 00:15:35]} {[%emt 00:00:03]}
14. b4 {[%clk 00:13:29]} {[%emt 00:00:17]} Rfe8 {[%clk 00:15:25]} {[%emt
00:00:14]} 15. h3 {[%clk 00:13:10]} {[%emt 00:00:25]} d5 {[%clk 00:15:03]}
{[%emt 00:00:27]} 16. cxd5 {[%clk 00:12:16]} {[%emt 00:00:59]} exd5 {[%clk
00:15:05]} {[%emt 00:00:02]} 17. Nxd5 {[%clk 00:12:15]} {[%emt 00:00:06]} Nxd5
{[%clk 00:15:06]} {[%emt 00:00:04]} 18. exd5 {[%clk 00:12:17]} {[%emt
00:00:03]} cxb4 {[%clk 00:15:07]} {[%emt 00:00:05]} 19. axb4 {[%clk 00:12:07]}
{[%emt 00:00:15]} Bxb4 {[%clk 00:15:10]} {[%emt 00:00:02]} 20. Nc2 {[%clk
00:11:24]} {[%emt 00:00:48]} Bd6 {[%clk 00:14:56]} {[%emt 00:00:18]} 21. Bd4
{[%clk 00:10:52]} {[%emt 00:00:37]} Rbc8 {[%clk 00:14:52]} {[%emt 00:00:09]} 22.
Rb2 {[%clk 00:09:29]} {[%emt 00:01:29]} b5 {[%clk 00:14:51]} {[%emt 00:00:06]}
23. Kh2 {[%clk 00:09:02]} {[%emt 00:00:31]} Nc5 {[%clk 00:14:53]} {[%emt
00:00:03]} 24. Nb4 {[%clk 00:08:40]} {[%emt 00:00:28]} h5 {[%clk 00:14:33]}
{[%emt 00:00:25]} 25. Nc6 {[%clk 00:08:23]} {[%emt 00:00:22]} h4 {[%clk
00:14:34]} {[%emt 00:00:03]} 26. Ne5 {[%clk 00:07:50]} {[%emt 00:00:38]} hxg3+
{[%clk 00:14:35]} {[%emt 00:00:03]} 27. Kh1 {[%clk 00:07:37]} {[%emt 00:00:19]}
Na4 {[%clk 00:14:36]} {[%emt 00:00:05]} 28. Rd2 {[%clk 00:06:58]} {[%emt
00:00:43]} Nc3 {[%clk 00:14:01]} {[%emt 00:00:41]} 29. Qg4 {[%clk 00:06:25]}
{[%emt 00:00:38]} Rxe5 {[%clk 00:10:49]} {[%emt 00:03:17]} 30. fxe5 {[%clk
00:06:06]} {[%emt 00:00:24]} Bxe5 {[%clk 00:10:52]} {[%emt 00:00:01]} 31. Bxe5
{[%clk 00:04:46]} {[%emt 00:01:25]} Qxe5 {[%clk 00:10:54]} {[%emt 00:00:03]} 32.
d4 {[%clk 00:03:59]} {[%emt 00:00:53]} Qe3 {[%clk 00:10:38]} {[%emt 00:00:19]}
33. Qf4 {[%clk 00:03:18]} {[%emt 00:00:47]} Qxf4 {[%clk 00:10:30]} {[%emt
00:00:14]} 34. Rxf4 {[%clk 00:03:20]} {[%emt 00:00:02]} Nxd5 {[%clk 00:10:26]}
{[%emt 00:00:09]} 35. Rf1 {[%clk 00:03:13]} {[%emt 00:00:12]} Rc7 {[%clk
00:10:02]} {[%emt 00:00:28]} 36. Re1 {[%clk 00:03:09]} {[%emt 00:00:10]} a5
{[%clk 00:09:58]} {[%emt 00:00:09]} 37. Be4 {[%clk 00:02:29]} {[%emt 00:00:46]}
a4 {[%clk 00:09:55]} {[%emt 00:00:08]} 38. Kg2 {[%clk 00:02:10]} {[%emt
00:00:22]} b4 {[%clk 00:09:55]} {[%emt 00:00:06]} 39. Kxg3 {[%clk 00:02:07]}
{[%emt 00:00:07]} b3 {[%clk 00:09:39]} {[%emt 00:00:22]} 40. Ra1 {[%clk
00:01:54]} {[%emt 00:00:18]} Rc4 {[%clk 00:09:42]} {[%emt 00:00:01]} 41. Bxd5
{[%clk 00:01:18]} {[%emt 00:00:43]} Bxd5 {[%clk 00:09:45]} {[%emt 00:00:02]} 42.
Kf4 {[%clk 00:01:20]} {[%emt 00:00:02]} f6 {[%clk 00:09:46]} {[%emt 00:00:04]}
43. h4 {[%clk 00:01:20]} {[%emt 00:00:06]} Rb4 {[%clk 00:09:39]} {[%emt
00:00:10]} 44. Ke3 {[%clk 00:00:44]} {[%emt 00:00:42]} Kf7 {[%clk 00:09:34]}
{[%emt 00:00:10]} 45. Rb2 {[%clk 00:00:38]} {[%emt 00:00:11]} f5 {[%clk
00:09:29]} {[%emt 00:00:11]} 46. Kd3 {[%clk 00:00:37]} {[%emt 00:00:05]} Kf6
{[%clk 00:09:33]} {[%emt 00:00:01]} 47. Kc3 {[%clk 00:00:41]} {[%emt 00:00:02]}
Rc4+ {[%clk 00:09:37]} 48. Kd3 {[%clk 00:00:43]} {[%emt 00:00:02]} f4 {[%clk
00:09:27]} {[%emt 00:00:15]} 49. Rf2 {[%clk 00:00:31]} {[%emt 00:00:18]} Kf5
{[%clk 00:09:31]} {[%emt 00:00:01]} 50. Raf1 {[%clk 00:00:24]} {[%emt
00:00:12]} a3 {[%clk 00:09:17]} {[%emt 00:00:19]} 51. Rxf4+ {[%clk 00:00:27]}
{[%emt 00:00:01]} Ke6 {[%clk 00:09:22]} {[%emt 00:00:01]} 52. Rf6+ {[%clk
00:00:29]} {[%emt 00:00:03]} Ke7 {[%clk 00:09:26]} {[%emt 00:00:01]} 53. Rxg6
{[%clk 00:00:24]} {[%emt 00:00:10]} b2 {[%clk 00:09:30]} {[%emt 00:00:01]} 54.
Rg7+ {[%clk 00:00:25]} {[%emt 00:00:03]} Ke8 {[%clk 00:09:31]} {[%emt
00:00:04]} 55. Re1+ {[%clk 00:00:18]} {[%emt 00:00:12]} Kd8 {[%clk 00:09:35]}
{[%emt 00:00:02]} 56. Rf1 {[%clk 00:00:13]} {[%emt 00:00:09]} Ke8 {[%clk
00:09:21]} {[%emt 00:00:19]} 57. Re1+ {[%clk 00:00:13]} {[%emt 00:00:05]} Kf8
{[%clk 00:09:26]} 58. Rd7 {[%clk 00:00:09]} {[%emt 00:00:10]} a2 {[%clk
00:09:20]} {[%emt 00:00:12]} 59. Rd8+ {[%clk 00:00:07]} {[%emt 00:00:06]} Kf7
{[%clk 00:09:22]} {[%emt 00:00:03]} 60. Rd7+ {[%clk 00:00:11]} {[%emt
00:00:02]} Kg8 {[%clk 00:09:23]} {[%emt 00:00:03]} 61. Rg1+ {[%clk 00:00:10]}
{[%emt 00:00:06]} Kf8 {[%clk 00:09:25]} {[%emt 00:00:03]} 62. Rf1+ {[%clk
00:00:12]} {[%emt 00:00:03]} Ke8 {[%clk 00:09:29]} 63. Rxd5 {[%clk 00:00:12]}
{[%emt 00:00:06]} b1=Q+ {[%clk 00:09:29]} {[%emt 00:00:06]} 64. Rxb1 {[%clk
00:00:15]} {[%emt 00:00:01]} axb1=Q+ {[%clk 00:09:23]} {[%emt 00:00:11]} 65.
Kxc4 {[%clk 00:00:19]} Qf1+ {[%clk 00:09:25]} {[%emt 00:00:03]} 66. Kc5 {[%clk
00:00:22]} {[%emt 00:00:02]} Qc1+ {[%clk 00:09:22]} {[%emt 00:00:07]} 67. Kd6
{[%clk 00:00:23]} {[%emt 00:00:04]} Qf4+ {[%clk 00:09:23]} {[%emt 00:00:04]} 68.
Kc5 {[%clk 00:00:26]} {[%emt 00:00:03]} Qxh4 {[%clk 00:09:26]} {[%emt
00:00:02]} 69. Re5+ {[%clk 00:00:30]} Kd7 {[%clk 00:09:29]} {[%emt 00:00:02]}
70. Kc4 {[%clk 00:00:36]} {[%emt 00:00:05]} Qf2 {[%clk 00:09:30]} {[%emt
00:00:07]} 71. Kd3 {[%clk 00:00:38]} {[%emt 00:00:03]} Kd6 {[%clk 00:09:32]}
{[%emt 00:00:03]} 72. Kc3 {[%clk 00:00:42]} {[%emt 00:00:02]} Qf1 {[%clk
00:09:33]} {[%emt 00:00:04]} 73. Rc5 {[%clk 00:00:43]} {[%emt 00:00:03]} Qf3+
{[%clk 00:09:34]} {[%emt 00:00:04]} 74. Kc4 {[%clk 00:00:45]} {[%emt 00:00:04]}
Qe4 {[%clk 00:09:38]} {[%emt 00:00:01]} 75. Kc3 {[%clk 00:00:49]} Qb1 {[%clk
00:09:23]} {[%emt 00:00:19]} 76. Re5 {[%clk 00:00:48]} {[%emt 00:00:06]} Qa2
{[%clk 00:09:17]} {[%emt 00:00:12]} 77. Rc5 {[%clk 00:00:47]} {[%emt 00:00:05]}
Qa3+ {[%clk 00:09:20]} {[%emt 00:00:03]} 78. Kc4 {[%clk 00:00:49]} {[%emt
00:00:03]} Qe3 {[%clk 00:09:10]} {[%emt 00:00:15]} 79. Re5 {[%clk 00:00:51]}
{[%emt 00:00:02]} Qc1+ {[%clk 00:08:59]} {[%emt 00:00:16]} 80. Kd3 {[%clk
00:00:54]} {[%emt 00:00:03]} Qb1+ {[%clk 00:08:46]} {[%emt 00:00:18]} 81. Kc3
{[%clk 00:00:55]} {[%emt 00:00:04]} Qa1+ {[%clk 00:08:46]} {[%emt 00:00:05]} 82.
Kd3 {[%clk 00:00:58]} {[%emt 00:00:01]} Qa3+ {[%clk 00:08:49]} {[%emt
00:00:02]} 83. Ke4 {[%clk 00:00:47]} {[%emt 00:00:16]} Qb3 {[%clk 00:08:49]}
{[%emt 00:00:06]} 84. Rc5 {[%clk 00:00:47]} {[%emt 00:00:04]} Ke6 {[%clk
00:08:07]} {[%emt 00:00:48]} 85. Re5+ {[%clk 00:00:46]} {[%emt 00:00:06]} Kf6
{[%clk 00:08:11]} 86. Rf5+ {[%clk 00:00:47]} {[%emt 00:00:04]} Kg6 {[%clk
00:08:15]} {[%emt 00:00:02]} 87. Rc5 {[%clk 00:00:51]} {[%emt 00:00:01]} Qa3
{[%clk 00:08:04]} {[%emt 00:00:17]} 88. Re5 {[%clk 00:00:43]} {[%emt 00:00:12]}
Qa2 {[%clk 00:07:52]} {[%emt 00:00:17]} 89. Rc5 {[%clk 00:00:42]} {[%emt
00:00:05]} Qe2+ {[%clk 00:07:50]} {[%emt 00:00:07]} 90. Kd5 {[%clk 00:00:37]}
{[%emt 00:00:10]} Kf6 {[%clk 00:07:44]} {[%emt 00:00:11]} 91. Rc6+ {[%clk
00:00:20]} {[%emt 00:00:22]} Ke7 {[%clk 00:07:40]} {[%emt 00:00:09]} 92. Rc7+
{[%clk 00:00:17]} {[%emt 00:00:08]} Kd8 {[%clk 00:07:43]} {[%emt 00:00:03]} 93.
Rc5 {[%clk 00:00:20]} {[%emt 00:00:02]} Kd7 {[%clk 00:07:46]} {[%emt 00:00:02]}
94. Rc3 {[%emt 00:00:21]} 0-1

[Event "Rapid Tournament (RAP)"]
[Site "Biel, Switzerland"]
[Date "2026.07.12"]
[Round "9.17"]
[White "Alsaqer, Meshal"]
[Black "Gluckman, David"]
[Result "0-1"]
[TimeControl "15 + 5"]
[WhiteTitle "-"]
[BlackTitle "-"]
[WhiteFideId "10301771"]
[BlackFideId "14300010"]
[WhiteElo "1903"]
[BlackElo "2161"]

1. d4 {[%clk 00:15:07]} e6 {[%clk 00:15:09]} {[%emt 00:00:02]} 2. Nf3 {[%clk
00:15:07]} {[%emt 00:00:04]} f5 {[%clk 00:15:12]} {[%emt 00:00:03]} 3. g3
{[%clk 00:15:07]} {[%emt 00:00:05]} Nf6 {[%clk 00:15:16]} 4. Bg2 {[%clk
00:15:08]} {[%emt 00:00:04]} d5 {[%clk 00:15:20]} {[%emt 00:00:02]} 5. O-O
{[%clk 00:15:07]} {[%emt 00:00:06]} Bd6 {[%clk 00:15:24]} {[%emt 00:00:01]} 6.
b3 {[%clk 00:15:07]} {[%emt 00:00:05]} Qe7 {[%clk 00:15:26]} {[%emt 00:00:02]}
7. a4 {[%clk 00:15:08]} {[%emt 00:00:05]} O-O {[%clk 00:15:28]} {[%emt
00:00:03]} 8. a5 {[%clk 00:14:54]} {[%emt 00:00:18]} a6 {[%clk 00:15:15]}
{[%emt 00:00:19]} 9. Ba3 {[%clk 00:14:53]} {[%emt 00:00:05]} Bxa3 {[%clk
00:15:14]} {[%emt 00:00:06]} 10. Nxa3 {[%clk 00:14:52]} {[%emt 00:00:07]} Nc6
{[%clk 00:15:15]} {[%emt 00:00:04]} 11. Nb1 {[%clk 00:14:39]} {[%emt 00:00:18]}
e5 {[%clk 00:15:11]} {[%emt 00:00:09]} 12. dxe5 {[%clk 00:14:32]} {[%emt
00:00:12]} Nxe5 {[%clk 00:15:15]} 13. Nc3 {[%clk 00:14:16]} {[%emt 00:00:21]}
c6 {[%clk 00:15:16]} {[%emt 00:00:04]} 14. Qd4 {[%clk 00:13:39]} {[%emt
00:00:42]} Re8 {[%clk 00:15:16]} {[%emt 00:00:05]} 15. Na4 {[%clk 00:13:12]}
{[%emt 00:00:32]} Ned7 {[%clk 00:14:42]} {[%emt 00:00:39]} 16. e3 {[%clk
00:12:56]} {[%emt 00:00:21]} Ne4 {[%clk 00:14:39]} {[%emt 00:00:08]} 17. c4
{[%clk 00:12:32]} {[%emt 00:00:29]} dxc4 {[%clk 00:14:23]} {[%emt 00:00:21]} 18.
Qxc4+ {[%clk 00:12:25]} {[%emt 00:00:11]} Qf7 {[%clk 00:14:12]} {[%emt
00:00:17]} 19. Qc2 {[%clk 00:12:00]} {[%emt 00:00:29]} Ndf6 {[%clk 00:13:56]}
{[%emt 00:00:22]} 20. Nb6 {[%clk 00:11:57]} {[%emt 00:00:08]} Rb8 {[%clk
00:14:00]} {[%emt 00:00:01]} 21. Rad1 {[%clk 00:11:47]} {[%emt 00:00:15]} Be6
{[%clk 00:14:02]} {[%emt 00:00:03]} 22. Rb1 {[%clk 00:11:24]} {[%emt 00:00:28]}
Rbd8 {[%clk 00:13:46]} {[%emt 00:00:21]} 23. Nd4 {[%clk 00:11:25]} {[%emt
00:00:04]} Nd5 {[%clk 00:12:52]} {[%emt 00:00:59]} 24. Nxe6 {[%clk 00:11:17]}
{[%emt 00:00:13]} Qxe6 {[%clk 00:12:47]} {[%emt 00:00:09]} 25. Nxd5 {[%clk
00:10:49]} {[%emt 00:00:34]} Rxd5 {[%clk 00:12:45]} {[%emt 00:00:08]} 26. Bxe4
{[%clk 00:10:16]} {[%emt 00:00:37]} fxe4 {[%clk 00:12:42]} {[%emt 00:00:08]} 27.
b4 {[%emt 00:00:33]} Qh3 {[%clk 00:12:26]} 28. f4 {[%clk 00:09:06]} {[%emt
00:01:08]} Rd3 {[%clk 00:11:54]} {[%emt 00:00:37]} 29. Rbe1 {[%clk 00:08:48]}
{[%emt 00:00:23]} Qf5 {[%clk 00:10:53]} {[%emt 00:01:06]} 30. Rf2 {[%clk
00:08:02]} {[%emt 00:00:51]} Red8 {[%clk 00:10:54]} {[%emt 00:00:04]} 31. Qc4+
{[%clk 00:07:30]} {[%emt 00:00:37]} Qd5 {[%clk 00:10:57]} {[%emt 00:00:02]} 32.
Rc2 {[%clk 00:07:06]} {[%emt 00:00:28]} Rb3 {[%clk 00:09:31]} {[%emt 00:01:32]}
33. Ree2 {[%clk 00:06:25]} {[%emt 00:00:47]} Rd7 {[%clk 00:08:57]} {[%emt
00:00:39]} 34. Kg2 {[%clk 00:05:56]} {[%emt 00:00:33]} h5 {[%clk 00:08:35]}
{[%emt 00:00:27]} 35. h3 {[%clk 00:05:40]} {[%emt 00:00:21]} Rd3 {[%clk
00:07:43]} {[%emt 00:00:56]} 36. Kf2 {[%clk 00:04:55]} {[%emt 00:00:49]} Rb3
{[%clk 00:05:19]} {[%emt 00:02:30]} 37. Re1 {[%clk 00:03:20]} {[%emt 00:01:40]}
Kf8 {[%clk 00:04:35]} {[%emt 00:00:50]} 38. Qxd5 {[%clk 00:03:02]} {[%emt
00:00:22]} cxd5 {[%clk 00:04:31]} {[%emt 00:00:10]} 39. Rc5 {[%clk 00:02:35]}
{[%emt 00:00:32]} Rxb4 {[%clk 00:04:28]} {[%emt 00:00:07]} 40. Re2 {[%clk
00:02:19]} {[%emt 00:00:22]} d4 {[%clk 00:03:47]} {[%emt 00:00:47]} 41. exd4
{[%clk 00:02:20]} {[%emt 00:00:03]} Rbxd4 {[%clk 00:03:48]} {[%emt 00:00:03]}
42. Rxh5 {[%clk 00:02:12]} {[%emt 00:00:13]} Ra4 {[%clk 00:03:41]} {[%emt
00:00:13]} 43. g4 {[%clk 00:02:00]} {[%emt 00:00:16]} Rd3 {[%clk 00:03:26]}
{[%emt 00:00:21]} 44. Re5 {[%clk 00:01:34]} {[%emt 00:00:31]} Rf3+ {[%clk
00:03:28]} {[%emt 00:00:03]} 45. Kg2 {[%clk 00:01:36]} {[%emt 00:00:02]} Rxf4
{[%clk 00:03:31]} {[%emt 00:00:02]} 46. Kg3 {[%clk 00:01:33]} {[%emt 00:00:09]}
Rf3+ {[%clk 00:03:24]} {[%emt 00:00:12]} 47. Kh4 {[%clk 00:01:37]} {[%emt
00:00:02]} Rfa3 {[%clk 00:03:07]} {[%emt 00:00:21]} 48. R2xe4 {[%clk 00:00:57]}
{[%emt 00:00:46]} Rxe4 {[%clk 00:03:08]} {[%emt 00:00:04]} 49. Rxe4 {[%clk
00:01:00]} Rxa5 {[%clk 00:03:11]} {[%emt 00:00:02]} 50. Rc4 {[%clk 00:00:49]}
{[%emt 00:00:16]} Re5 {[%clk 00:03:08]} {[%emt 00:00:08]} 51. Kg3 {[%clk
00:00:41]} {[%emt 00:00:13]} b5 {[%clk 00:02:34]} {[%emt 00:00:39]} 52. Rc6
{[%clk 00:00:39]} {[%emt 00:00:07]} a5 {[%clk 00:02:36]} {[%emt 00:00:02]} 53.
Kf4 {[%clk 00:00:40]} {[%emt 00:00:05]} Rd5 {[%clk 00:02:02]} {[%emt 00:00:40]}
54. Ke4 {[%clk 00:00:40]} {[%emt 00:00:05]} Rg5 {[%clk 00:02:05]} {[%emt
00:00:01]} 55. Kf4 {[%clk 00:00:41]} {[%emt 00:00:04]} Rd5 {[%clk 00:02:07]}
{[%emt 00:00:03]} 56. Ke4 {[%clk 00:00:45]} {[%emt 00:00:01]} Rd1 {[%clk
00:01:50]} {[%emt 00:00:22]} 57. Rc5 {[%clk 00:00:39]} {[%emt 00:00:11]} Rb1
{[%clk 00:01:52]} {[%emt 00:00:03]} 58. Kd3 {[%clk 00:00:25]} {[%emt 00:00:19]}
a4 {[%clk 00:01:53]} {[%emt 00:00:04]} 59. Kc2 {[%clk 00:00:28]} {[%emt
00:00:02]} Rb3 {[%clk 00:01:46]} {[%emt 00:00:12]} 60. h4 {[%clk 00:00:28]}
{[%emt 00:00:05]} b4 {[%clk 00:01:31]} {[%emt 00:00:20]} 61. Ra5 {[%clk
00:00:25]} {[%emt 00:00:08]} Rc3+ {[%clk 00:01:36]} 62. Kd2 {[%clk 00:00:26]}
{[%emt 00:00:04]} a3 {[%clk 00:01:37]} {[%emt 00:00:04]} 63. Ra4 {[%clk
00:00:27]} {[%emt 00:00:04]} Rc4 {[%clk 00:01:36]} {[%emt 00:00:05]} 64. h5
{[%clk 00:00:19]} {[%emt 00:00:12]} Rxg4 {[%clk 00:01:39]} {[%emt 00:00:03]} 65.
Kc2 {[%clk 00:00:17]} {[%emt 00:00:07]} Kg8 {[%clk 00:01:31]} {[%emt 00:00:13]}
66. Ra7 {[%clk 00:00:11]} {[%emt 00:00:11]} Kh7 {[%clk 00:01:34]} {[%emt
00:00:02]} 67. Kb3 {[%clk 00:00:14]} {[%emt 00:00:01]} Kh6 {[%clk 00:01:36]}
{[%emt 00:00:04]} 68. Ra5 {[%clk 00:00:17]} {[%emt 00:00:02]} Rg5 {[%clk
00:01:16]} {[%emt 00:00:25]} 69. Ra6+ {[%clk 00:00:18]} {[%emt 00:00:04]} Kxh5
{[%clk 00:01:19]} {[%emt 00:00:01]} 70. Kxb4 {[%clk 00:00:22]} {[%emt
00:00:02]} Rd5 {[%clk 00:01:14]} {[%emt 00:00:08]} 71. Rxa3 {[%clk 00:00:23]}
{[%emt 00:00:06]} g5 {[%clk 00:01:19]} 72. Kc4 {[%clk 00:00:27]} {[%emt
00:00:01]} Rd8 {[%clk 00:01:23]} 73. Rd3 {[%clk 00:00:26]} {[%emt 00:00:05]}
Rxd3 {[%clk 00:01:26]} {[%emt 00:00:02]} 74. Kxd3 {[%clk 00:00:31]} Kg4 {[%clk
00:01:30]} 75. Ke2 {[%clk 00:00:35]} Kg3 {[%clk 00:01:34]} {[%emt 00:00:01]} 76.
Kf1 {[%clk 00:00:39]} {[%emt 00:00:01]} Kh2 {[%clk 00:01:37]} {[%emt 00:00:02]}
77. Kf2 {[%clk 00:00:42]} {[%emt 00:00:02]} g4 {[%clk 00:01:41]} 78. Ke2 {[%clk
00:00:34]} {[%emt 00:00:13]} 0-1

[Event "Rapid Tournament (RAP)"]
[Site "Biel, Switzerland"]
[Date "2026.07.12"]
[Round "9.18"]
[White "Jehnichen, Kai"]
[Black "Harish, Neeraj"]
[Result "0-1"]
[TimeControl "15 + 5"]
[WhiteTitle "-"]
[BlackTitle "-"]
[WhiteFideId "24684333"]
[BlackFideId "30958130"]
[WhiteElo "1903"]
[BlackElo "2140"]

1. e4 {[%clk 00:15:08]} {[%emt 00:00:02]} e5 {[%clk 00:15:09]} 2. d4 {[%clk
00:15:10]} {[%emt 00:00:02]} exd4 {[%clk 00:15:11]} {[%emt 00:00:05]} 3. Qxd4
{[%clk 00:15:14]} Nc6 {[%clk 00:15:14]} {[%emt 00:00:02]} 4. Qe3 {[%clk
00:15:18]} {[%emt 00:00:01]} g6 {[%clk 00:15:07]} {[%emt 00:00:12]} 5. Nc3
{[%clk 00:15:10]} {[%emt 00:00:12]} Bg7 {[%clk 00:15:10]} {[%emt 00:00:02]} 6.
Nf3 {[%clk 00:15:13]} {[%emt 00:00:02]} d6 {[%clk 00:15:12]} {[%emt 00:00:04]}
7. Bd2 {[%clk 00:14:58]} {[%emt 00:00:19]} Nf6 {[%clk 00:15:16]} {[%emt
00:00:02]} 8. h3 {[%clk 00:14:54]} {[%emt 00:00:09]} O-O {[%clk 00:15:18]}
{[%emt 00:00:03]} 9. O-O-O {[%clk 00:14:56]} {[%emt 00:00:03]} a6 {[%clk
00:14:47]} {[%emt 00:00:37]} 10. Nd5 {[%clk 00:14:41]} {[%emt 00:00:19]} Nxd5
{[%clk 00:14:05]} {[%emt 00:00:47]} 11. exd5 {[%clk 00:14:43]} {[%emt
00:00:03]} Re8 {[%clk 00:14:07]} {[%emt 00:00:03]} 12. Qb3 {[%clk 00:14:38]}
{[%emt 00:00:10]} Ne5 {[%clk 00:14:00]} {[%emt 00:00:12]} 13. Bc3 {[%clk
00:14:32]} {[%emt 00:00:10]} Nxf3 {[%clk 00:13:15]} {[%emt 00:00:50]} 14. gxf3
{[%clk 00:14:17]} {[%emt 00:00:20]} b5 {[%clk 00:13:03]} {[%emt 00:00:18]} 15.
h4 {[%clk 00:14:16]} {[%emt 00:00:06]} h5 {[%clk 00:12:08]} {[%emt 00:00:59]}
16. Bxg7 {[%clk 00:14:14]} {[%emt 00:00:07]} Kxg7 {[%clk 00:12:12]} {[%emt
00:00:02]} 17. Qc3+ {[%clk 00:14:18]} Qf6 {[%clk 00:12:09]} {[%emt 00:00:07]}
18. Qxc7 {[%clk 00:13:44]} {[%emt 00:00:40]} Bf5 {[%clk 00:12:09]} {[%emt
00:00:04]} 19. Bd3 {[%clk 00:13:46]} {[%emt 00:00:03]} Rac8 {[%clk 00:11:59]}
{[%emt 00:00:15]} 20. Qb6 {[%clk 00:13:47]} {[%emt 00:00:04]} Re2 {[%clk
00:11:16]} {[%emt 00:00:48]} 21. Bxf5 {[%clk 00:12:00]} {[%emt 00:01:51]} Qxf5
{[%emt 00:00:09]} 22. Qd4+ {[%clk 00:12:02]} {[%emt 00:00:01]} Kh7 {[%clk
00:11:14]} {[%emt 00:00:06]} 0-1